[Event "Titled Tuesday Blitz June 27 Early 2023"]
[White "Ovchinnikov, Vsevolod"]
[Black "Clawitter, Craig"]
[WhiteFideId "24176842"]
[BlackFideId "2023105"]
[WhiteElo "2602"]
[BlackElo "2212"]
[Result "1-0"]
[Round "1"]
[TimeControl "180+2"]
[Date "2023.06.27"]
[WhiteClock "0:00:15"]
[BlackClock "0:00:08"]
[Board "199"]

1. d4 {[%clk 0:02:59]}  e6 {[%clk 0:03:00]} 2. c4 {[%clk 0:02:59]}  Nf6 {[%clk 0:03:01]} 3. g3 {[%clk 0:02:59]}  d5 {[%clk 0:03:01]} 4. Bg2 {[%clk 0:03:00]}  Be7 {[%clk 0:03:02]} 5. Nf3 {[%clk 0:03:00]}  O-O {[%clk 0:03:02]} 6. Nc3 {[%clk 0:03:01]}  dxc4 {[%clk 0:02:59]} 7. Ne5 {[%clk 0:03:01]}  Nc6 {[%clk 0:02:54]} 8. Bxc6 {[%clk 0:03:01]}  bxc6 {[%clk 0:02:55]} 9. Nxc6 {[%clk 0:03:02]}  Qe8 {[%clk 0:02:53]} 10. Nxe7+ {[%clk 0:03:03]}  Qxe7 {[%clk 0:02:54]} 11. Qa4 {[%clk 0:03:03]}  e5 {[%clk 0:02:51]} 12. dxe5 {[%clk 0:02:33]}  Qxe5 {[%clk 0:02:52]} 13. Bf4 {[%clk 0:02:33]}  Qh5 {[%clk 0:02:46]} 14. O-O-O {[%clk 0:02:09]}  Be6 {[%clk 0:02:32]} 15. f3 {[%clk 0:02:04]}  Qc5 {[%clk 0:02:08]} 16. Qb5 {[%clk 0:02:02]}  Qb6 {[%clk 0:01:59]} 17. Rd2 {[%clk 0:01:41]}  a6 {[%clk 0:01:42]} 18. Qe5 {[%clk 0:01:34]}  Rfc8 {[%clk 0:00:16]} 19. Be3 {[%clk 0:01:16]}  Qb7 {[%clk 0:00:15]} 20. Rhd1 {[%clk 0:01:14]}  Rab8 {[%clk 0:00:15]} 21. g4 {[%clk 0:00:43]}  Qb4 {[%clk 0:00:12]} 22. Qc5 {[%clk 0:00:21]}  Qb7 {[%clk 0:00:11]} 23. Bd4 {[%clk 0:00:16]}  Ne8 {[%clk 0:00:11]} 24. h4 {[%clk 0:00:13]}  Nd6 {[%clk 0:00:11]} 25. h5 {[%clk 0:00:13]}  h6 {[%clk 0:00:10]} 26. Qe5 {[%clk 0:00:13]}  Ne8 {[%clk 0:00:09]} 27. Bc5 {[%clk 0:00:13]}  Qc6 {[%clk 0:00:08]} 28. Be3 {[%clk 0:00:12]}  Rb5 {[%clk 0:00:08]} 29. Nxb5 {[%clk 0:00:12]}  axb5 {[%clk 0:00:09]} 30. Qc5 {[%clk 0:00:13]}  Qb7 {[%clk 0:00:09]} 31. a3 {[%clk 0:00:13]}  Nd6 {[%clk 0:00:08]} 32. Bf4 {[%clk 0:00:13]}  Rd8 {[%clk 0:00:07]} 33. Bxd6 {[%clk 0:00:13]}  cxd6 {[%clk 0:00:07]} 34. Rxd6 {[%clk 0:00:14]}  Rc8 {[%clk 0:00:08]} 35. Rd8+ {[%clk 0:00:14]}  Rxd8 {[%clk 0:00:08]} 36. Rxd8+ {[%clk 0:00:15]}  Kh7 {[%clk 0:00:09]} 37. Qf8 {[%clk 0:00:15]}  Qd5 {[%clk 0:00:08]} 38. Qh8# {[%clk 0:00:15]} 1-0


[Site "https://www.chess.com"]

[Event "Titled Tuesday Blitz June 27 Early 2023"]
[White "Larina, Maria"]
[Black "HamedWafa4"]
[WhiteFideId "24113182"]
[WhiteElo "2212"]
[BlackElo "2601"]
[Result "0-1"]
[Round "1"]
[TimeControl "180+2"]
[Date "2023.06.27"]
[WhiteClock "0:00:02"]
[BlackClock "0:01:00"]
[Board "200"]

1. e4 {[%clk 0:03:00]}  e5 {[%clk 0:02:49]} 2. Nf3 {[%clk 0:02:58]}  Nc6 {[%clk 0:02:48]} 3. Nc3 {[%clk 0:02:57]}  Nf6 {[%clk 0:02:45]} 4. Bb5 {[%clk 0:02:55]}  Bb4 {[%clk 0:02:43]} 5. O-O {[%clk 0:02:55]}  O-O {[%clk 0:02:37]} 6. d3 {[%clk 0:02:51]}  Bxc3 {[%clk 0:02:32]} 7. bxc3 {[%clk 0:02:49]}  d6 {[%clk 0:02:33]} 8. Nd2 {[%clk 0:02:37]}  Ne7 {[%clk 0:02:22]} 9. d4 {[%clk 0:02:36]}  Ng6 {[%clk 0:02:22]} 10. dxe5 {[%clk 0:02:25]}  dxe5 {[%clk 0:02:19]} 11. Ba3 {[%clk 0:02:23]}  Ne7 {[%clk 0:02:11]} 12. Qe2 {[%clk 0:02:01]}  c6 {[%clk 0:02:07]} 13. Bc4 {[%clk 0:01:52]}  b6 {[%clk 0:02:07]} 14. Rad1 {[%clk 0:01:41]}  c5 {[%clk 0:01:59]} 15. Nf3 {[%clk 0:01:27]}  Qc7 {[%clk 0:01:59]} 16. h3 {[%clk 0:01:20]}  Ng6 {[%clk 0:01:55]} 17. Bc1 {[%clk 0:01:00]}  Nh5 {[%clk 0:01:47]} 18. Kh2 {[%clk 0:00:49]}  Nhf4 {[%clk 0:01:45]} 19. Qe3 {[%clk 0:00:44]}  Be6 {[%clk 0:01:42]} 20. Bxe6 {[%clk 0:00:20]}  Nxe6 {[%clk 0:01:38]} 21. Ng5 {[%clk 0:00:17]}  Rad8 {[%clk 0:01:29]} 22. g3 {[%clk 0:00:16]}  c4 {[%clk 0:01:23]} 23. Rd5 {[%clk 0:00:12]}  Ne7 {[%clk 0:01:09]} 24. Rdd1 {[%clk 0:00:10]}  Nc5 {[%clk 0:01:08]} 25. Qf3 {[%clk 0:00:08]}  h6 {[%clk 0:01:02]} 26. Qh5 {[%clk 0:00:06]}  hxg5 {[%clk 0:01:01]} 27. Bxg5 {[%clk 0:00:06]}  Rxd1 {[%clk 0:01:01]} 28. Rxd1 {[%clk 0:00:06]}  Ng6 {[%clk 0:01:02]} 29. Rd5 {[%clk 0:00:05]}  Nxe4 {[%clk 0:01:00]} 30. Qf3 {[%clk 0:00:02]}  Nxg5 {[%clk 0:01:00]} 0-1


[Site "https://www.chess.com"]

[Event "Titled Tuesday Blitz June 27 Early 2023"]
[White "Balint, Vilmos"]
[Black "Gubajdullin, Alexei"]
[WhiteFideId "718050"]
[BlackFideId "4141202"]
[WhiteElo "2207"]
[BlackElo "2598"]
[Result "1/2-1/2"]
[Round "1"]
[TimeControl "180+2"]
[Date "2023.06.27"]
[WhiteClock "0:00:36"]
[BlackClock "0:00:17"]
[Board "202"]

1. d4 {[%clk 0:02:49]}  f5 {[%clk 0:02:59]} 2. g3 {[%clk 0:02:47]}  Nf6 {[%clk 0:02:57]} 3. Bg2 {[%clk 0:02:47]}  g6 {[%clk 0:02:57]} 4. b3 {[%clk 0:02:48]}  Bg7 {[%clk 0:02:57]} 5. Bb2 {[%clk 0:02:48]}  O-O {[%clk 0:02:56]} 6. Nf3 {[%clk 0:02:49]}  d6 {[%clk 0:02:56]} 7. O-O {[%clk 0:02:49]}  Qe8 {[%clk 0:02:53]} 8. c4 {[%clk 0:02:49]}  Na6 {[%clk 0:02:51]} 9. Qd2 {[%clk 0:02:44]}  Ne4 {[%clk 0:02:49]} 10. Qc1 {[%clk 0:02:40]}  h6 {[%clk 0:02:42]} 11. Nbd2 {[%clk 0:02:40]}  Nxd2 {[%clk 0:02:27]} 12. Qxd2 {[%clk 0:02:39]}  g5 {[%clk 0:02:24]} 13. Rfe1 {[%clk 0:02:37]}  Qg6 {[%clk 0:02:23]} 14. a3 {[%clk 0:02:28]}  c6 {[%clk 0:02:19]} 15. Qc2 {[%clk 0:02:28]}  Nc7 {[%clk 0:02:15]} 16. e4 {[%clk 0:02:28]}  fxe4 {[%clk 0:02:14]} 17. Qxe4 {[%clk 0:02:28]}  Qxe4 {[%clk 0:02:11]} 18. Rxe4 {[%clk 0:02:29]}  Rf7 {[%clk 0:02:11]} 19. Rae1 {[%clk 0:02:27]}  Kf8 {[%clk 0:02:10]} 20. h4 {[%clk 0:02:22]}  g4 {[%clk 0:02:08]} 21. Nh2 {[%clk 0:02:21]}  h5 {[%clk 0:02:08]} 22. f3 {[%clk 0:02:22]}  Bf5 {[%clk 0:01:55]} 23. Rf4 {[%clk 0:02:16]}  Bh6 {[%clk 0:01:52]} 24. Rxf5 {[%clk 0:02:10]}  Rxf5 {[%clk 0:01:51]} 25. fxg4 {[%clk 0:02:10]}  hxg4 {[%clk 0:01:51]} 26. Nxg4 {[%clk 0:02:11]}  Bg7 {[%clk 0:01:51]} 27. Be4 {[%clk 0:02:05]}  Rf7 {[%clk 0:01:31]} 28. Kg2 {[%clk 0:01:55]}  e6 {[%clk 0:01:22]} 29. Bg6 {[%clk 0:01:55]}  Re7 {[%clk 0:01:21]} 30. h5 {[%clk 0:01:55]}  c5 {[%clk 0:01:13]} 31. Rf1+ {[%clk 0:01:43]}  Kg8 {[%clk 0:01:11]} 32. Nf6+ {[%clk 0:01:44]}  Bxf6 {[%clk 0:01:04]} 33. Rxf6 {[%clk 0:01:45]}  Rf8 {[%clk 0:01:03]} 34. dxc5 {[%clk 0:01:45]}  dxc5 {[%clk 0:01:01]} 35. h6 {[%clk 0:01:42]}  Rxf6 {[%clk 0:00:56]} 36. Bxf6 {[%clk 0:01:41]}  Rd7 {[%clk 0:00:56]} 37. Be5 {[%clk 0:01:27]}  Na8 {[%clk 0:00:39]} 38. g4 {[%clk 0:01:21]}  Nb6 {[%clk 0:00:39]} 39. g5 {[%clk 0:01:20]}  Re7 {[%clk 0:00:39]} 40. Be4 {[%clk 0:01:15]}  Nd7 {[%clk 0:00:39]} 41. Bg7 {[%clk 0:00:54]}  Rxg7 {[%clk 0:00:37]} 42. hxg7 {[%clk 0:00:55]}  b6 {[%clk 0:00:37]} 43. Kg3 {[%clk 0:00:50]}  Kxg7 {[%clk 0:00:34]} 44. Kf4 {[%clk 0:00:51]}  Kf7 {[%clk 0:00:30]} 45. Bc6 {[%clk 0:00:51]}  Nf8 {[%clk 0:00:26]} 46. Ke5 {[%clk 0:00:48]}  Ke7 {[%clk 0:00:26]} 47. Be4 {[%clk 0:00:47]}  Nd7+ {[%clk 0:00:26]} 48. Kf4 {[%clk 0:00:48]}  Nf8 {[%clk 0:00:25]} 49. a4 {[%clk 0:00:45]}  a5 {[%clk 0:00:24]} 50. Ke5 {[%clk 0:00:44]}  Nd7+ {[%clk 0:00:24]} 51. Kf4 {[%clk 0:00:45]}  Nf8 {[%clk 0:00:24]} 52. Bb1 {[%clk 0:00:44]}  Nd7 {[%clk 0:00:23]} 53. Bg6 {[%clk 0:00:41]}  Nf8 {[%clk 0:00:23]} 54. Bh5 {[%clk 0:00:42]}  Nd7 {[%clk 0:00:22]} 55. Ke4 {[%clk 0:00:41]}  Nb8 {[%clk 0:00:21]} 56. Kf4 {[%clk 0:00:35]}  Nc6 {[%clk 0:00:21]} 57. Bd1 {[%clk 0:00:34]}  Nd4 {[%clk 0:00:20]} 58. Ke5 {[%clk 0:00:35]}  Nc6+ {[%clk 0:00:20]} 59. Ke4 {[%clk 0:00:35]}  Nd4 {[%clk 0:00:19]} 60. Ke5 {[%clk 0:00:29]}  Nc6+ {[%clk 0:00:19]} 61. Kf4 {[%clk 0:00:29]}  Nd4 {[%clk 0:00:19]} 62. Ke4 {[%clk 0:00:29]}  Nc6 {[%clk 0:00:19]} 63. Bc2 {[%clk 0:00:25]}  Kf7 {[%clk 0:00:18]} 64. Bd1 {[%clk 0:00:26]}  Kg6 {[%clk 0:00:17]} 65. Bg4 {[%clk 0:00:26]}  Nd4 {[%clk 0:00:16]} 66. Ke5 {[%clk 0:00:25]}  Kxg5 {[%clk 0:00:15]} 67. Bxe6 {[%clk 0:00:25]}  Nxb3 {[%clk 0:00:15]} 68. Kd6 {[%clk 0:00:25]}  Nd4 {[%clk 0:00:12]} 69. Bd5 {[%clk 0:00:25]}  Ne2 {[%clk 0:00:12]} 70. Kc6 {[%clk 0:00:26]}  Nc3 {[%clk 0:00:12]} 71. Kxb6 {[%clk 0:00:25]}  Nxa4+ {[%clk 0:00:12]} 72. Kxa5 {[%clk 0:00:26]}  Nb2 {[%clk 0:00:12]} 73. Kb5 {[%clk 0:00:27]}  Nxc4 {[%clk 0:00:12]} 74. Kxc4 {[%clk 0:00:27]}  Kf4 {[%clk 0:00:12]} 75. Bc6 {[%clk 0:00:28]}  Ke5 {[%clk 0:00:12]} 76. Bb5 {[%clk 0:00:29]}  Kd6 {[%clk 0:00:13]} 77. Ba4 {[%clk 0:00:30]}  Kc7 {[%clk 0:00:13]} 78. Bb3 {[%clk 0:00:31]}  Kd6 {[%clk 0:00:14]} 79. Bc2 {[%clk 0:00:32]}  Kc7 {[%clk 0:00:14]} 80. Bd3 {[%clk 0:00:33]}  Kd6 {[%clk 0:00:15]} 81. Bf1 {[%clk 0:00:34]}  Kc7 {[%clk 0:00:16]} 82. Bg2 {[%clk 0:00:35]}  Kd6 {[%clk 0:00:16]} 83. Bd5 {[%clk 0:00:36]}  Kc7 {[%clk 0:00:17]} 84. Kxc5 {[%clk 0:00:36]} 1/2-1/2


[Site "https://www.chess.com"]

[Event "Titled Tuesday Blitz June 27 Early 2023"]
[White "KSho99"]
[Black "Niekras, Dawid"]
[BlackFideId "1160451"]
[WhiteElo "2204"]
[BlackElo "2597"]
[Result "0-1"]
[Round "1"]
[TimeControl "180+2"]
[Date "2023.06.27"]
[WhiteClock "0:00:27"]
[BlackClock "0:00:45"]
[Board "204"]

1. d4 {[%clk 0:03:00]}  Nf6 {[%clk 0:02:59]} 2. Nc3 {[%clk 0:03:00]}  d5 {[%clk 0:02:57]} 3. Bf4 {[%clk 0:03:00]}  e6 {[%clk 0:02:52]} 4. Nb5 {[%clk 0:02:58]}  Na6 {[%clk 0:02:52]} 5. e3 {[%clk 0:02:54]}  c6 {[%clk 0:02:45]} 6. Nc3 {[%clk 0:02:54]}  Nb8 {[%clk 0:02:40]} 7. Nf3 {[%clk 0:02:54]}  Nbd7 {[%clk 0:02:33]} 8. Bd3 {[%clk 0:02:47]}  Be7 {[%clk 0:02:33]} 9. Ne5 {[%clk 0:02:39]}  a6 {[%clk 0:02:27]} 10. Qf3 {[%clk 0:02:26]}  c5 {[%clk 0:02:26]} 11. g4 {[%clk 0:01:53]}  Nxe5 {[%clk 0:01:51]} 12. Bxe5 {[%clk 0:01:40]}  Bd6 {[%clk 0:01:51]} 13. Bxd6 {[%clk 0:01:20]}  Qxd6 {[%clk 0:01:52]} 14. dxc5 {[%clk 0:01:20]}  Qxc5 {[%clk 0:01:53]} 15. g5 {[%clk 0:01:16]}  Nd7 {[%clk 0:01:51]} 16. O-O-O {[%clk 0:01:11]}  Ne5 {[%clk 0:01:44]} 17. Qf4 {[%clk 0:01:03]}  Nxd3+ {[%clk 0:01:33]} 18. Rxd3 {[%clk 0:01:03]}  Bd7 {[%clk 0:01:26]} 19. e4 {[%clk 0:01:00]}  d4 {[%clk 0:01:23]} 20. Ne2 {[%clk 0:00:33]}  e5 {[%clk 0:01:23]} 21. Qg3 {[%clk 0:00:31]}  Rc8 {[%clk 0:01:10]} 22. c3 {[%clk 0:00:31]}  O-O {[%clk 0:01:10]} 23. Kb1 {[%clk 0:00:31]}  Bb5 {[%clk 0:01:08]} 24. Rd2 {[%clk 0:00:29]}  Bxe2 {[%clk 0:01:03]} 25. Rxe2 {[%clk 0:00:30]}  dxc3 {[%clk 0:01:03]} 26. Qxc3 {[%clk 0:00:29]}  Qxc3 {[%clk 0:01:02]} 27. bxc3 {[%clk 0:00:29]}  Rxc3 {[%clk 0:01:03]} 28. Rb2 {[%clk 0:00:29]}  b5 {[%clk 0:01:01]} 29. Rd1 {[%clk 0:00:29]}  Rfc8 {[%clk 0:00:46]} 30. Rd6 {[%clk 0:00:27]}  Rc1# {[%clk 0:00:45]} 0-1


[Site "https://www.chess.com"]

[Event "Titled Tuesday Blitz June 27 Early 2023"]
[White "Megalios, Konstantinos"]
[Black "Ruge, Edison"]
[WhiteFideId "4238044"]
[BlackFideId "4401000"]
[WhiteElo "2597"]
[BlackElo "2204"]
[Result "1-0"]
[Round "1"]
[TimeControl "180+2"]
[Date "2023.06.27"]
[WhiteClock "0:00:11"]
[BlackClock "0:00:00"]
[Board "205"]

1. Nf3 {[%clk 0:02:59]}  d5 {[%clk 0:02:58]} 2. b3 {[%clk 0:02:58]}  f6 {[%clk 0:02:54]} 3. d4 {[%clk 0:02:53]}  Bf5 {[%clk 0:02:42]} 4. Bb2 {[%clk 0:02:44]}  a5 {[%clk 0:02:39]} 5. a3 {[%clk 0:02:41]}  Nc6 {[%clk 0:02:39]} 6. e3 {[%clk 0:02:39]}  e6 {[%clk 0:02:36]} 7. Nh4 {[%clk 0:02:27]}  Bg6 {[%clk 0:02:30]} 8. Nxg6 {[%clk 0:02:25]}  hxg6 {[%clk 0:02:30]} 9. c4 {[%clk 0:02:18]}  Nce7 {[%clk 0:02:25]} 10. Nc3 {[%clk 0:02:15]}  c6 {[%clk 0:02:25]} 11. e4 {[%clk 0:02:02]}  f5 {[%clk 0:02:17]} 12. exd5 {[%clk 0:01:58]}  exd5 {[%clk 0:02:16]} 13. Bd3 {[%clk 0:01:53]}  Nf6 {[%clk 0:02:16]} 14. Qc2 {[%clk 0:01:43]}  Qd6 {[%clk 0:02:14]} 15. g3 {[%clk 0:01:34]}  dxc4 {[%clk 0:02:09]} 16. Bxc4 {[%clk 0:01:29]}  b5 {[%clk 0:02:01]} 17. Be2 {[%clk 0:01:26]}  Ned5 {[%clk 0:01:57]} 18. Bf3 {[%clk 0:01:16]}  Qe6+ {[%clk 0:01:51]} 19. Kf1 {[%clk 0:01:14]}  Kf7 {[%clk 0:01:46]} 20. Re1 {[%clk 0:01:13]}  Qd6 {[%clk 0:01:44]} 21. Kg2 {[%clk 0:01:04]}  Be7 {[%clk 0:01:43]} 22. Re5 {[%clk 0:01:02]}  Rae8 {[%clk 0:01:37]} 23. Rhe1 {[%clk 0:01:01]}  Bd8 {[%clk 0:01:36]} 24. Nd1 {[%clk 0:00:47]}  Ng4 {[%clk 0:01:28]} 25. Rxe8 {[%clk 0:00:28]}  Rxe8 {[%clk 0:01:14]} 26. Rxe8 {[%clk 0:00:29]}  Kxe8 {[%clk 0:01:12]} 27. Bxg4 {[%clk 0:00:26]}  fxg4 {[%clk 0:01:10]} 28. Qe4+ {[%clk 0:00:26]}  Kf7 {[%clk 0:01:02]} 29. Qxg4 {[%clk 0:00:27]}  Bf6 {[%clk 0:01:02]} 30. Qe4 {[%clk 0:00:25]}  b4 {[%clk 0:00:58]} 31. a4 {[%clk 0:00:24]}  g5 {[%clk 0:00:52]} 32. h3 {[%clk 0:00:24]}  Qd7 {[%clk 0:00:50]} 33. Bc1 {[%clk 0:00:24]}  Ne7 {[%clk 0:00:48]} 34. Be3 {[%clk 0:00:22]}  Qd5 {[%clk 0:00:43]} 35. Qxd5+ {[%clk 0:00:20]}  cxd5 {[%clk 0:00:43]} 36. Nb2 {[%clk 0:00:21]}  Nc6 {[%clk 0:00:42]} 37. Nd3 {[%clk 0:00:20]}  Nxd4 {[%clk 0:00:40]} 38. Bxd4 {[%clk 0:00:20]}  Bxd4 {[%clk 0:00:40]} 39. g4 {[%clk 0:00:19]}  Ke6 {[%clk 0:00:35]} 40. Kf3 {[%clk 0:00:18]}  Kd6 {[%clk 0:00:30]} 41. Kg3 {[%clk 0:00:18]}  Bf6 {[%clk 0:00:27]} 42. Kf3 {[%clk 0:00:17]}  Bd4 {[%clk 0:00:24]} 43. Kg3 {[%clk 0:00:17]}  Bf6 {[%clk 0:00:24]} 44. Kg2 {[%clk 0:00:17]}  d4 {[%clk 0:00:22]} 45. Kf3 {[%clk 0:00:16]}  Kd5 {[%clk 0:00:23]} 46. Ne1 {[%clk 0:00:15]}  Be5 {[%clk 0:00:20]} 47. Nd3 {[%clk 0:00:15]}  Bf6 {[%clk 0:00:19]} 48. Ke2 {[%clk 0:00:16]}  Be7 {[%clk 0:00:17]} 49. f3 {[%clk 0:00:16]}  Bd6 {[%clk 0:00:17]} 50. Nf2 {[%clk 0:00:16]}  Be7 {[%clk 0:00:16]} 51. Kd3 {[%clk 0:00:16]}  Bf6 {[%clk 0:00:15]} 52. Ne4 {[%clk 0:00:17]}  Be7 {[%clk 0:00:15]} 53. Nd2 {[%clk 0:00:16]}  Bd8 {[%clk 0:00:14]} 54. Nc4 {[%clk 0:00:16]}  Bc7 {[%clk 0:00:14]} 55. Nb2 {[%clk 0:00:16]}  Ke5 {[%clk 0:00:13]} 56. Nd1 {[%clk 0:00:15]}  Kf4 {[%clk 0:00:13]} 57. Kxd4 {[%clk 0:00:16]}  Kxf3 {[%clk 0:00:13]} 58. Ne3 {[%clk 0:00:16]}  Kg3 {[%clk 0:00:13]} 59. Nf5+ {[%clk 0:00:16]}  Kxh3 {[%clk 0:00:13]} 60. Nxg7 {[%clk 0:00:16]}  Kxg4 {[%clk 0:00:12]} 61. Ne6 {[%clk 0:00:16]}  Bb6+ {[%clk 0:00:12]} 62. Kc4 {[%clk 0:00:16]}  Kf5 {[%clk 0:00:12]} 63. Ng7+ {[%clk 0:00:14]}  Ke4 {[%clk 0:00:09]} 64. Kb5 {[%clk 0:00:13]}  Bd8 {[%clk 0:00:08]} 65. Ne6 {[%clk 0:00:14]}  Be7 {[%clk 0:00:08]} 66. Nxg5+ {[%clk 0:00:10]}  Bxg5 {[%clk 0:00:07]} 67. Kxa5 {[%clk 0:00:11]}  Be7 {[%clk 0:00:05]} 68. Kb5 {[%clk 0:00:11]}  Kd3 {[%clk 0:00:05]} 69. a5 {[%clk 0:00:10]}  Kc3 {[%clk 0:00:00]} 70. a6 {[%clk 0:00:11]} 1-0


[Site "https://www.chess.com"]

[Event "Titled Tuesday Blitz June 27 Early 2023"]
[White "Sariego Figueredo, Wilfredo"]
[Black "Girya, Olga"]
[WhiteFideId "3500080"]
[BlackFideId "4195752"]
[WhiteElo "2196"]
[BlackElo "2594"]
[Result "0-1"]
[Round "1"]
[TimeControl "180+2"]
[Date "2023.06.27"]
[WhiteClock "0:01:05"]
[BlackClock "0:00:08"]
[Board "206"]

1. d4 {[%clk 0:03:00]}  Nf6 {[%clk 0:02:59]} 2. Bf4 {[%clk 0:03:00]}  e6 {[%clk 0:02:52]} 3. e3 {[%clk 0:03:00]}  c5 {[%clk 0:02:52]} 4. c3 {[%clk 0:03:00]}  b6 {[%clk 0:02:38]} 5. Nf3 {[%clk 0:02:59]}  Be7 {[%clk 0:02:38]} 6. Bd3 {[%clk 0:02:59]}  O-O {[%clk 0:02:29]} 7. Nbd2 {[%clk 0:02:50]}  cxd4 {[%clk 0:02:28]} 8. exd4 {[%clk 0:02:50]}  Ba6 {[%clk 0:02:28]} 9. Bxa6 {[%clk 0:02:49]}  Nxa6 {[%clk 0:02:29]} 10. O-O {[%clk 0:02:49]}  Nb8 {[%clk 0:02:27]} 11. h3 {[%clk 0:02:50]}  Nc6 {[%clk 0:02:27]} 12. Re1 {[%clk 0:02:50]}  Rc8 {[%clk 0:02:21]} 13. Ne5 {[%clk 0:02:50]}  d6 {[%clk 0:02:16]} 14. Nxc6 {[%clk 0:02:47]}  Rxc6 {[%clk 0:02:17]} 15. Qa4 {[%clk 0:02:48]}  Qd7 {[%clk 0:02:16]} 16. Nf3 {[%clk 0:02:45]}  Rfc8 {[%clk 0:02:10]} 17. Rad1 {[%clk 0:02:44]}  R6c7 {[%clk 0:01:59]} 18. Qxd7 {[%clk 0:02:32]}  Rxd7 {[%clk 0:01:58]} 19. Bg5 {[%clk 0:02:31]}  Nd5 {[%clk 0:01:55]} 20. Bxe7 {[%clk 0:02:29]}  Rxe7 {[%clk 0:01:51]} 21. Nd2 {[%clk 0:02:29]}  b5 {[%clk 0:01:51]} 22. Ne4 {[%clk 0:02:29]}  Rd7 {[%clk 0:01:50]} 23. Rd3 {[%clk 0:02:25]}  a5 {[%clk 0:01:48]} 24. a3 {[%clk 0:02:25]}  h6 {[%clk 0:01:40]} 25. Ra1 {[%clk 0:02:24]}  Kf8 {[%clk 0:01:37]} 26. Rf3 {[%clk 0:02:19]}  Ke7 {[%clk 0:01:36]} 27. Ng3 {[%clk 0:02:11]}  Rb7 {[%clk 0:01:23]} 28. Re1 {[%clk 0:02:08]}  g6 {[%clk 0:01:21]} 29. h4 {[%clk 0:02:01]}  h5 {[%clk 0:01:21]} 30. Ne4 {[%clk 0:02:00]}  b4 {[%clk 0:01:13]} 31. cxb4 {[%clk 0:01:59]}  axb4 {[%clk 0:01:13]} 32. Ng5 {[%clk 0:01:59]}  Ke8 {[%clk 0:01:01]} 33. Ne4 {[%clk 0:01:55]}  Rc6 {[%clk 0:00:53]} 34. Nf6+ {[%clk 0:01:48]}  Nxf6 {[%clk 0:00:53]} 35. Rxf6 {[%clk 0:01:49]}  d5 {[%clk 0:00:37]} 36. Re3 {[%clk 0:01:39]}  Rc4 {[%clk 0:00:16]} 37. Rf4 {[%clk 0:01:32]}  bxa3 {[%clk 0:00:16]} 38. bxa3 {[%clk 0:01:33]}  Ra7 {[%clk 0:00:16]} 39. Rd3 {[%clk 0:01:31]}  Rca4 {[%clk 0:00:16]} 40. Rff3 {[%clk 0:01:30]}  Ke7 {[%clk 0:00:16]} 41. Rfe3 {[%clk 0:01:30]}  Kd6 {[%clk 0:00:16]} 42. Kf1 {[%clk 0:01:30]}  Rb7 {[%clk 0:00:16]} 43. Ke2 {[%clk 0:01:28]}  Rb2+ {[%clk 0:00:15]} 44. Kf3 {[%clk 0:01:28]}  Ra2 {[%clk 0:00:16]} 45. Kf4 {[%clk 0:01:26]}  Rxf2+ {[%clk 0:00:15]} 46. Kg3 {[%clk 0:01:26]}  Ra2 {[%clk 0:00:15]} 47. Rf3 {[%clk 0:01:26]}  Re2 {[%clk 0:00:14]} 48. Rxf7 {[%clk 0:01:25]}  Re4 {[%clk 0:00:15]} 49. Rf4 {[%clk 0:01:23]}  Rxf4 {[%clk 0:00:11]} 50. Kxf4 {[%clk 0:01:24]}  e5+ {[%clk 0:00:11]} 51. Ke3 {[%clk 0:01:23]}  exd4+ {[%clk 0:00:12]} 52. Rxd4 {[%clk 0:01:23]}  Rxa3+ {[%clk 0:00:12]} 53. Kf4 {[%clk 0:01:24]}  Kc5 {[%clk 0:00:07]} 54. Rd2 {[%clk 0:01:23]}  d4 {[%clk 0:00:08]} 55. Kg5 {[%clk 0:01:23]}  Rg3+ {[%clk 0:00:07]} 56. Kf4 {[%clk 0:01:24]}  Rg4+ {[%clk 0:00:07]} 57. Kf3 {[%clk 0:01:23]}  Rxh4 {[%clk 0:00:07]} 58. g3 {[%clk 0:01:24]}  Rg4 {[%clk 0:00:07]} 59. Rc2+ {[%clk 0:01:21]}  Kd5 {[%clk 0:00:08]} 60. Rc8 {[%clk 0:01:21]}  d3 {[%clk 0:00:08]} 61. Rg8 {[%clk 0:01:20]}  Kd4 {[%clk 0:00:07]} 62. Rc8 {[%clk 0:01:19]}  d2 {[%clk 0:00:07]} 63. Rc7 {[%clk 0:01:17]}  Kd3 {[%clk 0:00:07]} 64. Rd7+ {[%clk 0:01:15]}  Kc2 {[%clk 0:00:07]} 65. Rc7+ {[%clk 0:01:15]}  Kd1 {[%clk 0:00:08]} 66. Rc6 {[%clk 0:01:13]}  Rd4 {[%clk 0:00:07]} 67. Kf2 {[%clk 0:01:12]}  Rd3 {[%clk 0:00:06]} 68. Rc8 {[%clk 0:01:11]}  Rd5 {[%clk 0:00:06]} 69. Rc6 {[%clk 0:01:10]}  Rf5+ {[%clk 0:00:06]} 70. Kg2 {[%clk 0:01:09]}  Ke2 {[%clk 0:00:07]} 71. Re6+ {[%clk 0:01:09]}  Kd3 {[%clk 0:00:07]} 72. Rd6+ {[%clk 0:01:09]}  Ke3 {[%clk 0:00:07]} 73. Re6+ {[%clk 0:01:09]}  Kd4 {[%clk 0:00:07]} 74. Rd6+ {[%clk 0:01:05]}  Rd5 {[%clk 0:00:08]} 75. Rxd5+ {[%clk 0:01:06]}  Kxd5 {[%clk 0:00:08]} 76. Kf2 {[%clk 0:01:05]}  d1=Q {[%clk 0:00:08]} 0-1


[Site "https://www.chess.com"]